Workbook

Sheet MYP, MSS
B1: Joonas Lahti | E1: 21.2.1998 Veteli
B2: YKKÖSPESIS | E2: Runkosarja | L2: Runkosarja TOP-10 | Q2: Jatkosarjat | X2: SUOMENSARJA | AA2: Runkosarja | AH2: Runkosarja TOP-10 | AM2: Jatkosarjat
B3: Vuosi | C3: Sija | D3: Seura | E3: OTT | F3: KUN | G3: LÖI | H3: TOI | I3: KL | J3: KL-% | L3: LÖI | M3: TOI | N3: L+T | O3: KL | Q3: OTT | R3: KUN | S3: LÖI | T3: TOI | U3: KL | V3: KL-% | X3: Vuosi | Y3: Sija | Z3: Seura | AA3: OTT | AB3: KUN | AC3: LÖI | AD3: TOI | AE3: KL | AF3: KL-% | AH3: LÖI | AI3: TOI | AJ3: L+T | AK3: KL | AM3: OTT | AN3: KUN | AO3: LÖI | AP3: TOI | AQ3: KL | AR3: KL-%
X4: 2014 | Y4: 4. | Z4: Ura | AA4: 6 | AB4: 0 | AC4: 14 | AD4: 0 | AE4: 17 | AF4: 56.7 % | AG4: 30 | AM4: 2 | AN4: 0 | AO4: 0 | AP4: 1 | AQ4: 6 | AR4: 54.5 % | AS4: 11
X5: 2015 | Y5: 6. | Z5: VePe | AA5: 18 | AB5: 0 | AC5: 11 | AD5: 6 | AE5: 43 | AF5: 43.9 % | AG5: 98
X6: 2016 | Y6: 2. | Z6: VePe | AA6: 16 | AB6: 4 | AC6: 24 | AD6: 16 | AE6: 61 | AF6: 60.4 % | AG6: 101 | AM6: 4 | AN6: 0 | AO6: 0 | AP6: 0 | AQ6: 9 | AR6: 42.9 % | AS6: 21
X7: 2017 | Y7: 1. | Z7: VePe | AA7: 14 | AB7: 1 | AC7: 19 | AD7: 11 | AE7: 54 | AF7: 60.0 % | AG7: 90 | AJ7: 9. | AM7: 7 | AN7: 0 | AO7: 8 | AP7: 5 | AQ7: 20 | AR7: 47.6 % | AS7: 42
X8: 2018 | Y8: 3. | Z8: VePe | AA8: 14 | AB8: 3 | AC8: 27 | AD8: 16 | AE8: 80 | AF8: 66.7 % | AG8: =PRODUCT(AE8/AF8) -> 120 | AM8: 3 | AN8: 0 | AO8: 0 | AP8: 2 | AQ8: 6 | AR8: 37.5 % | AS8: =PRODUCT(AQ8/AR8) -> 16
B9: 2019 | C9: 12. | D9: Ura | E9: 18 | F9: 0 | G9: 7 | H9: 5 | I9: 31 | J9: 38.8 % | K9: 80 | X9: 2019 | Y9: 3. | Z9: VePe | AA9: 12 | AB9: 3 | AC9: 19 | AD9: 12 | AE9: 56 | AF9: 62.2 % | AG9: 90
X10: 2020 | Y10: 7. | Z10: Ura 2 | AA10: 4 | AB10: 2 | AC10: 10 | AD10: 5 | AE10: 19 | AF10: 55.9 % | AG10: 34
X11: 2021 | Y11: 4. | Z11: YKV | AA11: 3 | AB11: 0 | AC11: 4 | AD11: 0 | AE11: 10 | AF11: 58.8 % | AG11: 17
B12: YHTEENSÄ | E12: =SUM(E4:E11) -> 18 | F12: =SUM(F4:F11) -> 0 | G12: =SUM(G4:G11) -> 7 | H12: =SUM(H4:H11) -> 5 | I12: =SUM(I4:I11) -> 31 | J12: =PRODUCT(I12/K12) -> 38.8 % | K12: =SUM(K4:K11) -> 80 | Q12: =SUM(Q4:Q11) -> 0 | R12: =SUM(R4:R11) -> 0 | S12: =SUM(S4:S11) -> 0 | T12: =SUM(T4:T11) -> 0 | U12: =SUM(U4:U11) -> 0 | V12: 0.0 % | W12: =SUM(W4:W11) -> 0 | X12: YHTEENSÄ | AA12: =SUM(AA4:AA11) -> 87 | AB12: =SUM(AB4:AB11) -> 13 | AC12: =SUM(AC4:AC11) -> 128 | AD12: =SUM(AD4:AD11) -> 66 | AE12: =SUM(AE4:AE11) -> 340 | AF12: =PRODUCT(AE12/AG12) -> 58.6 % | AG12: =SUM(AG4:AG11) -> 580.0120012 | AM12: =SUM(AM4:AM11) -> 16 | AN12: =SUM(AN4:AN11) -> 0 | AO12: =SUM(AO4:AO11) -> 8 | AP12: =SUM(AP4:AP11) -> 8 | AQ12: =SUM(AQ4:AQ11) -> 41 | AR12: =PRODUCT(AQ12/AS12) -> 45.6 % | AS12: =SUM(AS4:AS11) -> 90
B14: KAIKKI OTTELUT | E14: OTT | F14: KUN | G14: LÖI | H14: TOI | I14: KL | J14: KL-% | L14: ka/L | M14: ka/T | N14: ka/l+t | O14: ka/kl | R14: Seurat | T14: VePe = Veteli Pesis (2000), kasvattajaseura
B15: SUPERPESIS | E15: 0 | F15: 0 | G15: 0 | H15: 0 | I15: 0 | J15: 0.0 % | K15: 0 | L15: 0.00 | M15: 0.00 | N15: 0.00 | O15: 0.00 | T15: Ura = Kannuksen Ura (1969)
B16: YKKÖSPESIS | E16: =PRODUCT(E12+Q12) -> 18 | F16: =PRODUCT(F12+R12) -> 0 | G16: =PRODUCT(G12+S12) -> 7 | H16: =PRODUCT(H12+T12) -> 5 | I16: =PRODUCT(I12+U12) -> 31 | J16: =PRODUCT(I16/K16) -> 38.8 % | K16: =PRODUCT(K12+W12) -> 80 | L16: =PRODUCT((F16+G16)/E16) -> 0.39 | M16: =PRODUCT(H16/E16) -> 0.28 | N16: =PRODUCT((F16+G16+H16)/E16) -> 0.67 | O16: =PRODUCT(I16/E16) -> 1.72 | T16: YKV = Ylistaron Kilpa-Veljet (1945)
B17: SUOMENSARJA | E17: =PRODUCT(AA12+AM12) -> 103 | F17: =PRODUCT(AB12+AN12) -> 13 | G17: =PRODUCT(AC12+AO12) -> 136 | H17: =PRODUCT(AD12+AP12) -> 74 | I17: =PRODUCT(AE12+AQ12) -> 381 | J17: =PRODUCT(I17/K17) -> 56.9 % | K17: =PRODUCT(AG12+AS12) -> 670.0120012 | L17: =PRODUCT((F17+G17)/E17) -> 1.45 | M17: =PRODUCT(H17/E17) -> 0.72 | N17: =PRODUCT((F17+G17+H17)/E17) -> 2.17 | O17: =PRODUCT(I17/E17) -> 3.70
B18: YHTEENSÄ | E18: =SUM(E15:E17) -> 121 | F18: =SUM(F15:F17) -> 13 | G18: 143 | H18: 79 | I18: 412 | J18: =PRODUCT(I18/K18) -> 54.9 % | K18: =SUM(K15:K17) -> 750.0120012 | L18: =PRODUCT((F18+G18)/E18) -> 1.29 | M18: =PRODUCT(H18/E18) -> 0.65 | N18: =PRODUCT((F18+G18+H18)/E18) -> 1.94 | O18: =PRODUCT(I18/E18) -> 3.40
